fUST/lending_fUST_20250715
["ID","MTS","AMOUNT","RATE_DAILY","PERIOD"]
[372208657,1752550240652,-145892.69452173,0.000215,2]
[372208658,1752550240667,-383.112,0.000215,2]
[372208920,1752550243306,-500.0,0.00020899,2]
[372208922,1752550243319,-396.90725572,0.00020899,2]
[372208924,1752550243331,-519.15851565,0.00020899,2]
[372208927,1752550243343,-306.23149296,0.00020899,2]
[372208929,1752550243356,-14567.42137306,0.000215,2]
[372208931,1752550243371,-152.433958,0.000215,2]
[372208933,1752550243386,-160.0,0.000215,2]
[372208935,1752550243399,-151.0,0.000215,2]
[372208938,1752550243412,-160.0,0.00021504,2]
[372208940,1752550243424,-168.0,0.00021535,2]
[372208942,1752550243436,-1054.88328214,0.0002159,5]
[372208944,1752550243449,-160.0,0.00021646,3]
[372208946,1752550243473,-170.080566,0.00021746,8]
[372208948,1752550243495,-1054.88328214,0.00021762,5]
[372208951,1752550243518,-420.0,0.00021777,2]
[372208953,1752550243534,-420.0,0.00021777,2]
[372208955,1752550243545,-420.0,0.00021777,2]
[372208957,1752550243557,-176.0,0.00021777,2]
[372208959,1752550243568,-429.0948676,0.000218,2]
[372208961,1752550243580,-429.0948676,0.000218,2]
[372208964,1752550243591,-429.0948676,0.000218,2]
[372208966,1752550243603,-429.0948676,0.000218,2]
[372208968,1752550243614,-682.9726588,0.000218,2]
[372208970,1752550243626,-500.0,0.00021804,2]
[372208972,1752550243637,-210.23649423,0.00021804,2]
[372208975,1752550243649,-151.0,0.00021816,2]
[372208977,1752550243660,-5108.46914216,0.00021817,2]
[372208979,1752550243674,-1649.36721682,0.00021817,2]
[372208982,1752550243688,-4424.79999392,0.00021817,2]
[372208984,1752550243702,-9220.68381108,0.00021817,2]
[372208988,1752550243729,-3368.61096307,0.00021817,2]
[372209515,1752550294131,500.0,0.00018,2]
[372209516,1752550331586,2987.0,0.00027397,120]
[372209521,1752551141148,-454.33244115,0.000194,2]
[372209522,1752551227131,-560.86662515,0.000194,2]
[372209523,1752551227151,-203.582399,0.00020783,2]
[372209524,1752551227178,-170.080566,0.00021477,8]
[372209525,1752551227202,-151.0,0.000215,2]
[372209526,1752551227223,-152.103887,0.00021607,2]
[372209527,1752551227245,-429.0948676,0.000217,2]
[372209528,1752551227266,-207.4,0.00021804,2]
[372209529,1752551227287,-670.34079842,0.00021816,2]
[372209530,1752551230086,-228.42002969,0.00021816,2]
[372209531,1752551236115,-2111.84209842,0.00021816,2]
[372209532,1752551240083,-1019.56119213,0.00021816,2]
[372209533,1752551270945,-170.080566,0.00021477,8]
[372209534,1752551270969,-487.19103881,0.00021907,10]
[372209535,1752551271026,-302.0,0.00021907,10]
[372209536,1752551271147,-454.462652,0.00021907,10]
[372209537,1752551271197,-145.07630919,0.00021907,10]
[372209538,1752551271220,-307.92369081,0.00021907,10]
[372209539,1752551271442,-174.98,0.00021907,10]
[372209541,1752551360868,159.411348,0.00013699,2]
[372210024,1752551438465,-1356.92428749,0.00019807,2]
[372210026,1752551438475,-170.080566,0.00021477,8]
[372210028,1752551438485,-182.0,0.00021816,2]
[372210030,1752551438494,-300.0,0.00021816,2]
[372210032,1752551438505,-8018.35330153,0.00021817,2]
[372210034,1752551438514,-151.0,0.00021817,2]
[372210036,1752551438527,-383.07849003,0.00021817,2]
[372210038,1752551438537,-889.78598862,0.00021817,2]
[372210040,1752551438546,-4071.34828914,0.00021817,2]
[372210042,1752551438555,-843.90662577,0.000219,6]
[372210044,1752551438564,-468.75,0.00021902,2]
[372210046,1752551438574,-270.47392172,0.00021903,2]
[372210048,1752551438584,-838.84061749,0.00021903,2]
[372210050,1752551438593,-525.51022752,0.00021903,2]
[372210052,1752551438602,-215.50840239,0.00021903,2]
[372210054,1752551438612,-207.4,0.00021904,2]
[372210056,1752551438621,-151.0,0.00021904,2]
[372210058,1752551438630,-151.0,0.00021904,2]
[372210060,1752551438640,-151.0,0.00021904,2]
[372210062,1752551438650,-151.0,0.00021904,2]
[372210064,1752551438660,-151.0,0.00021904,2]
[372210066,1752551438669,-151.0,0.00021904,2]
[372210068,1752551438678,-151.0,0.00021904,2]
[372210070,1752551438688,-151.0,0.00021904,2]
[372210072,1752551438698,-151.0,0.00021904,2]
[372210074,1752551438707,-151.0,0.00021904,2]
[372210076,1752551438717,-151.0,0.00021904,2]
[372210078,1752551438725,-151.0,0.00021904,2]
[372210080,1752551438735,-151.0,0.00021904,2]
[372210082,1752551438746,-151.0,0.00021904,2]
[372210084,1752551438755,-151.0,0.00021904,2]
[372210085,1752551438764,-168.464,0.00021907,2]
[372210087,1752551438776,-1076.79,0.00021907,10]
[372210089,1752551438786,-897.61,0.00021907,3]
[372210091,1752551438796,-897.32,0.00021907,10]
[372210093,1752551438806,-889.78598862,0.00021909,2]
[372210095,1752551438815,-649.289,0.0002191,2]
[372210097,1752551438825,-2155.0,0.0002191,2]
[372210098,1752551438834,-407.0,0.0002191,2]
[372210100,1752551438843,-969.156,0.0002191,2]
[372210102,1752551438852,-152.103887,0.00021914,15]
[372210104,1752551438861,-293.90041972,0.00021916,2]
[372210106,1752551438871,-200.41181916,0.00021916,2]
[372210108,1752551438880,-258.673697,0.00021917,2]
[372210110,1752551438889,-151.0,0.00021917,2]
[372210111,1752551438898,-151.0,0.00021917,2]
[372210113,1752551438907,-151.0,0.00021917,2]
[372210115,1752551438916,-151.0,0.00021917,2]
[372210117,1752551438925,-151.0,0.00021917,2]
[372210119,1752551438935,-151.0,0.00021917,2]
[372210120,1752551438944,-151.0,0.00021917,2]
[372210122,1752551438954,-151.0,0.00021917,2]
[372210124,1752551438963,-151.0,0.00021917,2]
[372210126,1752551438972,-151.0,0.00021917,2]
[372210128,1752551438983,-151.0,0.00021917,2]
[372210130,1752551438992,-151.486242,0.00021917,2]
[372210132,1752551439001,-151.0,0.00021917,2]
[372210134,1752551439010,-152.462861,0.00021917,2]
[372210135,1752551439020,-151.0,0.00021917,2]
[372210137,1752551439029,-460.0,0.00021917,3]
[372210139,1752551439039,-461.17672384,0.00021917,3]
[372210141,1752551439048,-604.49506498,0.00021917,3]
[372210143,1752551439057,-461.30220969,0.00021917,3]
[372210145,1752551439067,-461.764059,0.00021917,3]
[372210147,1752551439076,-437.76073033,0.00021917,3]
[372210148,1752551439085,-462.48262276,0.00021917,3]
[372210150,1752551439095,-607.41518366,0.00021917,3]
[372210152,1752551439105,-460.0,0.00021917,3]
[372210154,1752551439114,-245.04428866,0.00021917,3]
[372210156,1752551439125,-449.78844114,0.00021917,3]
[372210158,1752551439135,-460.0,0.00021917,3]
[372210160,1752551439144,-460.0,0.00021917,3]
[372210162,1752551439154,-393.03046255,0.00021917,3]
[372210163,1752551439164,-461.84016934,0.00021917,3]
[372210165,1752551439174,-460.0,0.00021917,3]
[372210167,1752551439183,-460.0,0.00021917,3]
[372210169,1752551439192,-152.378969,0.00021917,2]
[372210171,1752551439202,-461.83314639,0.00021917,3]
[372210172,1752551439211,-460.0,0.00021917,3]
[372210174,1752551439221,-461.0587816,0.00021917,3]
[372210176,1752551439230,-151.0,0.00021917,2]
[372210178,1752551439239,-151.0,0.00021917,2]
[372210180,1752551439248,-151.0,0.00021917,2]
[372210182,1752551439259,-151.0,0.00021917,2]
[372210183,1752551439270,-151.0,0.00021917,2]
[372210185,1752551439280,-151.0,0.00021917,2]
[372210187,1752551439293,-460.0,0.00021917,3]
[372210189,1752551439302,-151.0,0.00021917,2]
[372210191,1752551439313,-151.0,0.00021917,2]
[372210193,1752551439322,-151.0,0.00021917,2]
[372210195,1752551439332,-151.0,0.00021917,2]
[372210197,1752551439343,-462.45829897,0.00021917,3]
[372210199,1752551439353,-463.28332503,0.00021917,3]
[372210200,1752551439363,-461.51554214,0.00021917,3]
[372210202,1752551439373,-244.89343282,0.00021917,3]
[372210204,1752551439383,-499.64852489,0.00021917,3]
[372210206,1752551439392,-151.0,0.00021917,2]
[372210208,1752551439402,-151.0,0.00021917,2]
[372210210,1752551439411,-151.0,0.00021917,2]
[372210212,1752551439421,-151.0,0.00021917,2]
[372210214,1752551439431,-151.0,0.00021917,2]
[372210215,1752551439440,-461.27328234,0.00021917,3]
[372210217,1752551439450,-151.0,0.00021917,2]
[372210219,1752551439460,-151.0,0.00021917,2]
[372210221,1752551439469,-151.0,0.00021917,2]
[372210223,1752551439479,-151.0,0.00021917,2]
[372210225,1752551439489,-151.0,0.00021917,2]
[372210227,1752551439499,-151.0,0.00021917,2]
[372210229,1752551439508,-151.0,0.00021917,2]
[372210231,1752551439518,-230.04664,0.00021917,2]
[372210232,1752551439528,-461.91054014,0.00021917,3]
[372210234,1752551439538,-460.0,0.00021917,3]
[372210236,1752551439547,-460.0,0.00021917,3]
[372210238,1752551439557,-151.0,0.00021917,2]
[372210240,1752551439566,-151.0,0.00021917,2]
[372210242,1752551439576,-152.513321,0.00021917,2]
[372210244,1752551439585,-171.16581252,0.00021917,3]
[372210246,1752551439595,-460.0,0.00021917,3]
[372210247,1752551439605,-151.0,0.00021917,2]
[372210249,1752551439614,-151.0,0.00021917,2]
[372210251,1752551439623,-151.0,0.00021917,2]
[372210253,1752551439633,-151.0,0.00021917,2]
[372210255,1752551439643,-220.581197,0.00021917,2]
[372210257,1752551439652,-151.0,0.00021917,2]
[372210259,1752551439662,-151.728491,0.00021917,2]
[372210261,1752551439671,-439.99288979,0.00021917,3]
[372210263,1752551439681,-151.0,0.00021917,2]
[372210264,1752551439691,-151.0,0.00021917,2]
[372210266,1752551439700,-460.0,0.00021917,3]
[372210268,1752551439710,-151.0,0.00021917,2]
[372210270,1752551439719,-151.0,0.00021917,2]
[372210272,1752551439729,-248.593019,0.00021917,2]
[372210274,1752551439738,-460.0,0.00021917,3]
[372210276,1752551439748,-460.0,0.00021917,3]
[372210277,1752551439757,-460.0,0.00021917,3]
[372210279,1752551439766,-151.0,0.00021917,2]
[372210281,1752551439778,-151.0,0.00021917,2]
[372210283,1752551439787,-151.0,0.00021917,2]
[372210285,1752551439797,-155.690863,0.00021917,2]
[372210287,1752551439807,-461.97594702,0.00021917,3]
[372210289,1752551439816,-499.23,0.00021917,3]
[372210291,1752551439825,-460.0,0.00021917,3]
[372210293,1752551439835,-460.0,0.00021917,3]
[372210294,1752551439845,-151.0,0.00021917,2]
[372210296,1752551439854,-151.0,0.00021917,2]
[372210298,1752551439863,-151.0,0.00021917,2]
[372210300,1752551439873,-151.0,0.00021917,2]
[372210302,1752551439883,-151.0,0.00021917,2]
[372210304,1752551439892,-468.60036054,0.00021917,3]
[372210306,1752551439901,-462.1120937,0.00021917,3]
[372210308,1752551439910,-460.0,0.00021917,3]
[372210309,1752551439920,-460.0,0.00021917,3]
[372210311,1752551439929,-151.0,0.00021917,2]
[372210313,1752551439938,-151.0,0.00021917,2]
[372210315,1752551439948,-151.934595,0.00021917,2]
[372210317,1752551439957,-460.0,0.00021917,3]
[372210319,1752551439966,-460.0,0.00021917,3]
[372210321,1752551439976,-462.16100348,0.00021917,3]
[372210322,1752551439986,-460.0,0.00021917,3]
[372210324,1752551439996,-1000.0,0.00021917,3]
[372210326,1752551440006,-460.0,0.00021917,3]
[372210328,1752551440016,-450.68759197,0.00021917,3]
[372210330,1752551440028,-539.96,0.00021917,3]
[372210332,1752551440038,-542.34802565,0.00021917,3]
[372210334,1752551440047,-460.0,0.00021917,3]
[372210336,1752551440057,-460.0,0.00021917,3]
[372210338,1752551440066,-460.0,0.00021917,3]
[372210339,1752551440075,-460.0,0.00021917,3]
[372210341,1752551440085,-460.0,0.00021917,3]
[372210343,1752551440095,-461.66943632,0.00021917,3]
[372210345,1752551440105,-465.44970807,0.00021917,3]
[372210347,1752551440114,-461.48393375,0.00021917,3]
[372210349,1752551440124,-461.90416747,0.00021917,3]
[372210351,1752551440134,-455.45840667,0.00021917,3]
[372210353,1752551440143,-460.0,0.00021917,3]
[372210355,1752551440153,-460.0,0.00021917,3]
[372210357,1752551440163,-463.4622333,0.00021917,3]
[372210359,1752551440173,-460.0,0.00021917,3]
[372210360,1752551440183,-460.0,0.00021917,3]
[372210362,1752551440191,-462.17942303,0.00021917,3]
[372210364,1752551440201,-462.87830416,0.00021917,3]
[372210366,1752551440211,-460.0,0.00021917,3]
[372210368,1752551440220,-461.30803092,0.00021917,3]
[372210370,1752551440230,-460.0,0.00021917,3]
[372210372,1752551440239,-256.07028802,0.00021917,3]
[372210374,1752551440249,-463.19997479,0.00021917,3]
[372210376,1752551440259,-460.0,0.00021917,3]
[372210377,1752551440275,-460.0,0.00021917,3]
[372210379,1752551440285,-460.0,0.00021917,3]
[372210381,1752551440295,-460.0,0.00021917,3]
[372210383,1752551440304,-460.0,0.00021917,3]
[372210385,1752551440316,-463.14586353,0.00021917,3]
[372210387,1752551440325,-461.18157853,0.00021917,3]
[372210389,1752551440335,-463.03886414,0.00021917,3]
[372210391,1752551440345,-460.0,0.00021917,3]
[372210393,1752551440355,-462.27978404,0.00021917,3]
[372210395,1752551440364,-461.63432726,0.00021917,3]
[372210396,1752551440373,-460.33582992,0.00021917,3]
[372210398,1752551440383,-460.0,0.00021917,3]
[372210400,1752551440392,-151.0,0.00021917,2]
[372210402,1752551440402,-460.0,0.00021917,3]
[372210404,1752551440412,-151.0,0.00021917,2]
[372210406,1752551440421,-151.0,0.00021917,2]
[372210408,1752551440431,-155.276748,0.00021917,2]
[372210410,1752551440441,-460.60145906,0.00021917,3]
[372210412,1752551440450,-461.23788662,0.00021917,3]
[372210413,1752551440460,-460.31813519,0.00021917,3]
[372210415,1752551440469,-461.11161669,0.00021917,3]
[372210417,1752551440478,-461.415166,0.00021917,3]
[372210419,1752551440488,-460.0,0.00021917,3]
[372210421,1752551440497,-463.24584956,0.00021917,3]
[372210423,1752551440506,-460.0,0.00021917,3]
[372210425,1752551440515,-499.49576666,0.00021917,3]
[372210427,1752551440527,-460.0,0.00021917,3]
[372210429,1752551440536,-460.0,0.00021917,3]
[372210431,1752551440545,-460.0,0.00021917,3]
[372210432,1752551440555,-460.0,0.00021917,3]
[372210434,1752551440564,-460.7873372,0.00021917,3]
[372210436,1752551440573,-460.0,0.00021917,3]
[372210438,1752551440583,-461.71439258,0.00021917,3]
[372210440,1752551440592,-460.0,0.00021917,3]
[372210442,1752551440603,-465.78318938,0.00021917,3]
[372210444,1752551440612,-508.17446043,0.00021917,3]
[372210446,1752551440621,-462.32934738,0.00021917,3]
[372210448,1752551440630,-460.0,0.00021917,3]
[372210450,1752551440640,-460.86853149,0.00021917,3]
[372210452,1752551440649,-463.40450232,0.00021917,3]
[372210453,1752551440659,-152.615587,0.00021917,2]
[372210455,1752551440669,-231.05412282,0.00021917,3]
[372210457,1752551440679,-460.0,0.00021917,3]
[372210459,1752551440688,-460.0,0.00021917,3]
[372210470,1752551440810,-460.0,0.00021917,3]
[372210472,1752551440820,-460.4341974,0.00021917,3]
[372210474,1752551440830,-463.26026209,0.00021917,3]
[372210476,1752551440839,-151.0,0.00021917,2]
[372210477,1752551440848,-151.0,0.00021917,2]
[372210479,1752551440858,-151.0,0.00021917,2]
[372210481,1752551440867,-463.0329996,0.00021917,3]
[372210483,1752551440877,-151.0,0.00021917,2]
[372210485,1752551440889,-461.53870294,0.00021917,3]
[372210487,1752551440902,-151.0,0.00021917,2]
[372210488,1752551440911,-264.537946,0.00021917,2]
[372210489,1752551440920,-460.0,0.00021917,3]
[372210491,1752551440930,-460.0,0.00021917,3]
[372210493,1752551440940,-363.51567259,0.00021917,3]
[372210495,1752551440949,-489.43714189,0.00021917,3]
[372210497,1752551440958,-460.77395065,0.00021917,3]
[372210499,1752551440968,-460.0,0.00021917,3]
[372210501,1752551440978,-1081.4,0.00021917,3]
[372210503,1752551440988,-529.63850119,0.00021917,3]
[372210504,1752551440997,-151.0,0.00021917,2]
[372210505,1752551441007,-164.246858,0.00021917,2]
[372210506,1752551441017,-460.0,0.00021917,3]
[372210507,1752551441029,-463.27075037,0.00021917,3]
[372210508,1752551441039,-460.0,0.00021917,3]
[372210509,1752551441048,-535.70950618,0.00021917,3]
[372210510,1752551441057,-309.5643497,0.00021917,3]
[372210511,1752551441067,-460.0,0.00021917,3]
[372210512,1752551441076,-460.0,0.00021917,3]
[372210513,1752551441085,-460.0,0.00021917,3]
[372210514,1752551441095,-462.71843929,0.00021917,3]
[372210515,1752551441105,-227.231326,0.00021917,2]
[372210516,1752551441114,-227.231326,0.00021917,2]
[372210517,1752551441123,-227.231326,0.00021917,2]
[372210518,1752551441134,-227.231326,0.00021917,2]
[372210519,1752551441143,-227.231326,0.00021917,2]
[372210520,1752551441153,-218.100059,0.00021917,2]
[372210521,1752551441162,-227.231326,0.00021917,2]
[372210522,1752551441171,-227.231326,0.00021917,2]
[372210523,1752551441180,-227.231326,0.00021917,2]
[372210524,1752551441190,-227.231326,0.00021917,2]
[372210525,1752551441207,-227.231326,0.00021917,2]
[372210526,1752551441218,-460.0,0.00021917,3]
[372210527,1752551441228,-460.0,0.00021917,3]
[372210528,1752551441238,-460.0,0.00021917,3]
[372210529,1752551441247,-460.0,0.00021917,3]
[372210530,1752551441259,-601.64,0.00021917,3]
[372210531,1752551441276,-460.0,0.00021917,3]
[372210532,1752551441286,-460.0,0.00021917,3]
[372210533,1752551441295,-460.0,0.00021917,3]
[372210534,1752551441305,-463.35520987,0.00021917,3]
[372210535,1752551441317,-151.0,0.00021917,2]
[372210536,1752551441327,-151.0,0.00021917,2]
[372210537,1752551441337,-151.0,0.00021917,2]
[372210538,1752551441346,-151.0,0.00021917,2]
[372210539,1752551441356,-460.0,0.00021917,3]
[372210540,1752551441365,-151.0,0.00021917,2]
[372210541,1752551441375,-55.17755942,0.00021917,2]
[372210542,1752551441404,-95.82244058,0.00021917,2]
[372210543,1752551441413,-159.04755942,0.00021917,3]
[372210544,1752551441424,-301.41598011,0.00021917,3]
[372210545,1752551441434,-151.0,0.00021917,2]
[372210546,1752551441443,-151.0,0.00021917,2]
[372210547,1752551441453,-151.0,0.00021917,2]
[372210548,1752551441462,-151.0,0.00021917,2]
[372210549,1752551441471,-151.0,0.00021917,2]
[372210550,1752551441480,-155.929394,0.00021917,2]
[372210551,1752551441489,-462.67732135,0.00021917,3]
[372210552,1752551441499,-462.90967607,0.00021917,3]
[372210553,1752551441508,-460.5486287,0.00021917,3]
[372210554,1752551441517,-151.0,0.00021917,2]
[372210555,1752551441527,-151.0,0.00021917,2]
[372210556,1752551441537,-460.0,0.00021917,3]
[372210557,1752551441546,-151.0,0.00021917,2]
[372210558,1752551441555,-151.0,0.00021917,2]
[372210559,1752551441564,-65.99142602,0.00021917,2]
[372210560,1752551441584,-85.00857398,0.00021917,2]
[372210561,1752551441594,-151.0,0.00021917,2]
[372210562,1752551441603,-460.0,0.00021917,3]
[372210563,1752551441612,-151.0,0.00021917,2]
[372210564,1752551441621,-151.0,0.00021917,2]
[372210565,1752551441630,-151.0,0.00021917,2]
[372210566,1752551441639,-151.0,0.00021917,2]
[372210567,1752551441648,-103.17655099,0.00021917,2]
[372210568,1752551441660,-159.14069801,0.00021917,2]
[372210569,1752551441669,-151.0,0.00021917,2]
[372210570,1752551441678,-239.300413,0.00021917,2]
[372210571,1752551441687,-315.64472145,0.00021917,3]
[372210572,1752551441697,-460.0,0.00021917,3]
[372210573,1752551441706,-462.26415672,0.00021917,3]
[372210574,1752551441716,-465.40052561,0.00021917,3]
[372210575,1752551441724,-460.0,0.00021917,3]
[372210576,1752551441734,-460.0,0.00021917,3]
[372210577,1752551441743,-460.0,0.00021917,3]
[372210578,1752551441752,-460.0,0.00021917,3]
[372210579,1752551441762,-151.0,0.00021917,2]
[372210580,1752551441774,-151.0,0.00021917,2]
[372210581,1752551441782,-151.0,0.00021917,2]
[372210582,1752551441792,-92.53479469,0.00021917,2]
[372210583,1752551441816,-58.46520531,0.00021917,2]
[372210584,1752551441825,-273.468769,0.00021917,2]
[372210585,1752551441835,-460.0,0.00021917,3]
[372210586,1752551441844,-460.0,0.00021917,3]
[372210587,1752551441854,-460.0,0.00021917,3]
[372210588,1752551441864,-151.0,0.00021917,2]
[372210589,1752551441873,-153.731194,0.00021917,2]
[372210590,1752551441883,-460.0,0.00021917,3]
[372210591,1752551441893,-460.0,0.00021917,3]
[372210592,1752551441903,-151.0,0.00021917,2]
[372210593,1752551441912,-151.0,0.00021917,2]
[372210594,1752551441921,-152.993271,0.00021917,2]
[372210595,1752551441931,-462.18788801,0.00021917,3]
[372210596,1752551441942,-460.0,0.00021917,3]
[372210597,1752551441951,-460.0,0.00021917,3]
[372210598,1752551441961,-461.46223028,0.00021917,3]
[372210599,1752551441970,-152.056365,0.00021917,2]
[372210600,1752551441980,-460.0,0.00021917,3]
[372210601,1752551441989,-8.51022865,0.00021917,3]
[372210602,1752551442002,-451.48977135,0.00021917,3]
[372210603,1752551442011,-156.35603797,0.00021917,3]
[372210604,1752551442024,-261.15305559,0.00021917,3]
[372210605,1752551442034,-278.69316377,0.00021917,3]
[372210606,1752551442046,-187.74828643,0.00021917,3]
[372210607,1752551442055,-151.0,0.00021917,2]
[372210608,1752551442065,-151.0,0.00021917,2]
[372210609,1752551442074,-151.0,0.00021917,2]
[372210610,1752551442084,-32.15639243,0.00021917,2]
[372210646,1752551445614,-302.96970908,0.00021797,8]
[372210648,1752551445624,-150.0,0.0002191,2]
[372210650,1752551445634,-118.84360757,0.00021917,2]
[372210652,1752551445643,-99.9660517,0.00021917,3]
[372210654,1752551445658,-429.42624312,0.00021907,3]
[372210657,1752551445672,-316.3803713,0.00021907,3]
[372210659,1752551445683,-344.14338558,0.00021907,3]
[372210661,1752551445693,-360.0339483,0.00021917,3]
[372210664,1752551445703,-151.0,0.00021917,2]
[372210666,1752551445712,-253.546407,0.00021917,2]
[372210668,1752551445721,-460.0,0.00021917,3]
[372210670,1752551445731,-460.0,0.00021917,3]
[372210672,1752551445740,-460.0,0.00021917,3]
[372210674,1752551445749,-151.0,0.00021917,2]
[372210676,1752551445759,-151.0,0.00021917,2]
[372210678,1752551445768,-151.0,0.00021917,2]
[372210680,1752551445777,-151.0,0.00021917,2]
[372210682,1752551445787,-461.18291536,0.00021917,3]
[372210684,1752551445796,-151.0,0.00021917,2]
[372210686,1752551445806,-151.0,0.00021917,2]
[372210688,1752551445814,-460.0,0.00021917,3]
[372210689,1752551445824,-151.0,0.00021917,2]
[372210692,1752551445833,-276.224008,0.00021917,2]
[372210693,1752551445843,-461.01274665,0.00021917,3]
[372210695,1752551445852,-516.4272939,0.00021917,3]
[372210698,1752551445862,-461.61447725,0.00021917,3]
[372210701,1752551445871,-284.13731635,0.00021917,3]
[372210703,1752551445881,-151.0,0.00021917,2]
[372210705,1752551445890,-151.0,0.00021917,2]
[372210707,1752551445900,-460.0,0.00021917,3]
[372210709,1752551445909,-464.43173874,0.00021917,3]
[372210711,1752551445918,-151.0,0.00021917,2]
[372210712,1752551445928,-151.0,0.00021917,2]
[372210714,1752551445937,-151.0,0.00021917,2]
[372210716,1752551445946,-151.0,0.00021917,2]
[372210718,1752551445956,-151.0,0.00021917,2]
[372210720,1752551445965,-460.0,0.00021917,3]
[372210722,1752551445975,-151.0,0.00021917,2]
[372210724,1752551445984,-460.0,0.00021917,3]
[372210726,1752551445994,-151.666759,0.00021917,2]
[372210728,1752551446003,-462.26785164,0.00021917,3]
[372210730,1752551446012,-461.6274339,0.00021917,3]
[372210732,1752551446021,-151.0,0.00021917,2]
[372210734,1752551446032,-151.0,0.00021917,2]
[372210736,1752551446042,-151.0,0.00021917,2]
[372210738,1752551446052,-151.0,0.00021917,2]
[372210740,1752551446062,-151.0,0.00021917,2]
[372210742,1752551446071,-811.53,0.00021917,3]
[372210744,1752551446081,-151.0,0.00021917,2]
[372210746,1752551446090,-151.0,0.00021917,2]
[372210748,1752551446100,-151.0,0.00021917,2]
[372210750,1752551446109,-151.0,0.00021917,2]
[372210752,1752551446119,-151.0,0.00021917,2]
[372210754,1752551446128,-460.0,0.00021917,3]
[372210756,1752551446137,-30.66749018,0.00021917,3]
[372210778,1752551446294,-429.33250982,0.00021917,3]
[372210780,1752551446307,-460.0,0.00021917,3]
[372210782,1752551446316,-460.0,0.00021917,3]
[372210784,1752551446326,-460.0,0.00021917,3]
[372210786,1752551446335,-460.0,0.00021917,3]
[372210788,1752551446345,-463.89152186,0.00021917,3]
[372210789,1752551446356,-106.74694978,0.00021917,3]
[372210837,1752551446851,-351.59094771,0.00021917,3]
[372210843,1752551446906,-1.66210251,0.00021917,3]
[372210845,1752551446915,-460.0,0.00021917,3]
[372210847,1752551446925,-460.0,0.00021917,3]
[372210849,1752551446934,-460.0,0.00021917,3]
[372210852,1752551446944,-239.61907105,0.00021917,3]
[372210854,1752551446960,-199.97986336,0.00021917,3]
[372210856,1752551446970,-151.0,0.00021917,2]
[372210858,1752551446979,-464.41309192,0.00021917,3]
[372210860,1752551446989,-805.97,0.00021917,3]
[372210862,1752551446998,-462.47385837,0.00021917,3]
[372210865,1752551447008,-460.0,0.00021917,3]
[372210866,1752551447017,-460.0,0.00021917,3]
[372210868,1752551447028,-462.99488661,0.00021917,3]
[372210871,1752551447038,-460.0,0.00021917,3]
[372210873,1752551447047,-460.0,0.00021917,3]
[372210875,1752551447057,-460.0,0.00021917,3]
[372210877,1752551447066,-464.03011068,0.00021917,3]
[372210879,1752551447074,-460.0,0.00021917,3]
[372210881,1752551447084,-462.69825483,0.00021917,3]
[372210883,1752551447093,-460.0,0.00021917,3]
[372210885,1752551447102,-460.0,0.00021917,3]
[372210887,1752551447113,-460.0,0.00021917,3]
[372210889,1752551447122,-460.0,0.00021917,3]
[372210891,1752551447132,-460.42138614,0.00021917,3]
[372210893,1752551447141,-465.31814417,0.00021917,3]